bitfinex/quotes_SOLUSD_20240607
["timestamp","ask_amount","ask_price","bid_price","bid_amount"]
[1717754647882,2.1562,171.6,171.56,2.1565]
[1717754648184,7.31,171.57,171.56,2.1565]
[1717754659697,2.1563,171.59,171.56,2.1565]
[1717754659902,7.31,171.57,171.56,2.1565]
[1717754662307,7.31,171.57,171.55,2.1567]
[1717754662609,7.31,171.57,171.56,2.1566]
[1717754663110,7.31,171.58,171.56,2.1566]
[1717754663693,2.1563,171.59,171.56,2.1566]
[1717754664108,7.31,171.58,171.56,2.1566]
[1717754665100,2.1563,171.59,171.56,2.1566]
[1717754665413,7.31,171.58,171.56,2.1566]
[1717754669118,7.31,171.58,171.55,2.1567]
[1717754669494,2.1562,171.6,171.53,6.5346]
[1717754669693,4.3121,171.61,171.54,6.5346]
[1717754669908,7.31,171.58,171.54,16.2152]
[1717754670106,7.31,171.58,171.55,6.6461]
[1717754670411,9.4664,171.58,171.55,6.6461]
[1717754671303,7.31,171.58,171.55,6.6461]
[1717754671704,2.1563,171.59,171.55,6.6461]
[1717754671912,7.31,171.58,171.55,6.6461]
[1717754674000,9.4664,171.58,171.55,6.6461]
[1717754674517,7.31,171.58,171.55,6.6461]
[1717754674895,7.31,171.58,171.51,13.6342]
[1717754675090,7.31,171.57,171.51,6.3242]
[1717754675308,7.31,171.57,171.51,13.6342]
[1717754675494,7.31,171.57,171.51,6.3242]
[1717754675703,7.31,171.56,171.5,35.945]
[1717754675914,7.31,171.56,171.5,42.2458]
[1717754676108,7.31,171.55,171.5,35.945]
[1717754676420,7.31,171.55,171.51,6.3735]
[1717754678025,2.1563,171.59,171.52,16.1503]
[1717754678225,7.31,171.56,171.53,6.6484]
[1717754679425,2.1564,171.58,171.53,6.6484]
[1717754679628,7.31,171.56,171.53,6.6484]
[1717754682208,2.1563,171.59,171.53,6.6484]
[1717754682409,7.31,171.56,171.53,6.6484]
[1717754685133,7.31,171.56,171.5,20.0]
[1717754687031,7.31,171.57,171.5,20.0]
[1717754687218,7.31,171.56,171.5,20.0]
[1717754695142,2.1563,171.59,171.5,20.0]
[1717754695349,7.31,171.56,171.5,20.0]
[1717754698228,2.1562,171.6,171.5,20.0]
[1717754698429,7.31,171.57,171.5,20.0]
[1717754702330,7.31,171.56,171.5,20.0]
[1717754702945,7.31,171.55,171.51,6.3118]
[1717754703849,7.31,171.54,171.51,6.3118]
[1717754704536,2.1564,171.58,171.51,6.3118]
[1717754704723,7.31,171.54,171.51,6.3118]
[1717754706052,7.31,171.55,171.51,6.3118]
[1717754706343,2.1562,171.6,171.51,6.3118]
[1717754706522,7.31,171.57,171.51,6.3118]
[1717754707332,2.1563,171.59,171.51,6.3118]
[1717754707517,7.31,171.57,171.51,6.3118]
[1717754708557,41.75972694,171.63,171.51,6.3118]
[1717754708558,6.05202694,171.63,171.54,127.31]
[1717754708858,7.31,171.61,171.55,20.0]
[1717754709236,2.1557,171.64,171.55,20.0]
[1717754709429,7.31,171.61,171.55,20.0]
[1717754713834,7.31,171.62,171.58,6.3604]
[1717754714136,7.31,171.63,171.59,6.2558]
[1717754715053,7.31,171.62,171.59,6.2558]
[1717754715965,2.1556,171.65,171.59,6.2558]
[1717754716131,7.31,171.63,171.59,6.2558]
[1717754717559,2.1554,171.66,171.59,6.2558]
[1717754717724,7.31,171.63,171.59,6.2558]
[1717754717930,7.31,171.63,171.58,6.5557]
[1717754718134,7.31,171.63,171.59,6.5557]
[1717754718629,2.1554,171.66,171.58,15.9224]
[1717754718845,4.3103,171.69,171.58,149.412]
[1717754719057,7.31,171.65,171.59,20.0]
[1717754719432,7.31,171.65,171.6,2.33050862]
[1717754719633,7.31,171.65,171.61,8.36087281]
[1717754719844,2.1553,171.67,171.61,8.36087281]
[1717754720042,7.31,171.64,171.59,20.0]
[1717754720240,2.1552,171.68,171.61,6.0305]
[1717754720451,7.31,171.65,171.61,6.3667]
[1717754720761,8.14885966,171.7,171.61,135.8759]
[1717754720960,2.155,171.7,171.61,135.8759]
[1717754721255,7.31,171.66,171.62,6.3667]
[1717754721471,7.31,171.66,171.61,135.8759]
[1717754721642,7.31,171.66,171.62,6.3667]
[1717754724765,2.155,171.7,171.62,6.3667]
[1717754724943,7.31,171.66,171.62,6.3667]
[1717754726565,2.155,171.69,171.62,6.3667]
[1717754726741,7.31,171.66,171.62,6.3667]
[1717754728169,2.1548,171.71,171.62,6.3667]
[1717754728470,29.24,171.72,171.62,13.6767]
[1717754728638,19.3904,171.74,171.62,13.6767]
[1717754728838,19.3904,171.74,171.63,20.0]
[1717754728839,31.3947,171.72,171.63,20.0]
[1717754729045,7.31,171.67,171.63,26.3929]
[1717754729269,7.31,171.68,171.63,26.3929]
[1717754729751,2.1547,171.72,171.64,6.3929]
[1717754730139,7.31,171.69,171.63,155.1795]
[1717754730859,7.31,171.68,171.63,155.1795]
[1717754731043,7.31,171.68,171.64,6.362]
[1717754731566,2.1546,171.73,171.64,23.8472]
[1717754731758,7.31,171.7,171.66,6.362]
[1717754735174,7.31,171.69,171.66,6.362]
[1717754737155,2.1544,171.74,171.66,6.362]
[1717754737482,7.31,171.7,171.66,6.362]
[1717754737668,2.1544,171.74,171.66,6.362]
[1717754737870,7.31,171.7,171.65,156.2559]
[1717754738085,7.31,171.7,171.66,6.2164]
[1717754738373,2.1544,171.74,171.66,6.2164]
[1717754738759,2.1543,171.75,171.65,169.7525]
[1717754739070,7.31,171.71,171.65,169.7525]
[1717754739372,7.31,171.7,171.65,156.2559]
[1717754739676,7.31,171.7,171.66,6.6469]
[1717754742750,2.1544,171.74,171.66,6.6469]
[1717754743061,2.1543,171.75,171.66,6.3637]
[1717754743246,7.31,171.7,171.65,156.2559]
[1717754743448,7.31,171.7,171.66,6.3637]
[1717754745979,2.1543,171.75,171.66,6.3637]
[1717754746155,2.1542,171.76,171.66,6.3637]
[1717754746354,2.1541,171.77,171.67,140.0]
[1717754746554,2.1541,171.76,171.67,140.0]
[1717754746764,2.1541,171.77,171.67,140.0]
[1717754746971,7.31,171.73,171.67,140.0]
[1717754747254,2.1542,171.76,171.67,147.31]
[1717754747496,7.31,171.73,171.67,147.31]
[1717754748359,7.31,171.73,171.67,140.0]
[1717754748784,2.1542,171.76,171.67,140.0]
[1717754748953,7.31,171.72,171.68,6.4085]
[1717754750065,7.31,171.72,171.67,156.1518]
[1717754750359,2.1542,171.76,171.69,126.4085]
[1717754750565,7.31,171.72,171.69,126.4085]
[1717754753777,7.31,171.72,171.69,6.4085]
[1717754755977,2.1542,171.76,171.69,6.4085]
[1717754756173,7.31,171.73,171.69,6.4085]
[1717754756791,2.1542,171.76,171.69,6.4085]
[1717754757099,7.31,171.73,171.69,6.4085]
[1717754761990,19.3853,171.78,171.67,140.0]
[1717754761991,7.31,171.72,171.67,140.0]
[1717754762174,7.31,171.72,171.67,146.0436]
[1717754763268,7.31,171.72,171.67,26.0436]
[1717754766607,7.31,171.72,171.67,146.0436]
[1717754766884,2.1542,171.76,171.67,153.3536]
[1717754767094,7.31,171.74,171.67,153.3536]
[1717754767293,7.31,171.74,171.68,7.31]
[1717754768505,2.1541,171.77,171.69,120.0]
[1717754768686,7.31,171.74,171.69,126.1618]
[1717754771184,7.31,171.74,171.69,126.3593]
[1717754771386,7.31,171.75,171.69,126.3593]
[1717754771586,4.3077,171.79,171.69,133.6693]
[1717754771905,7.31,171.75,171.7,26.0081]
[1717754774306,2.154,171.77,171.71,6.4492]
[1717754774496,7.31,171.75,171.71,6.4492]
[1717754775695,7.31,171.74,171.71,6.4492]
[1717754780822,7.31,171.75,171.71,6.4492]
[1717754781411,2.1539,171.78,171.71,6.4492]
[1717754781617,7.31,171.75,171.71,6.4492]
[1717754782816,7.31,171.76,171.71,6.4492]
[1717754783906,7.31,171.75,171.71,6.4492]
[1717754784107,7.31,171.74,171.71,6.4492]
[1717754786119,7.31,171.72,171.67,6.3851]
[1717754786413,7.31,171.71,171.67,6.3851]
[1717754786627,2.1543,171.75,171.67,6.3851]
[1717754786935,7.31,171.71,171.65,162.29]
[1717754787227,7.31,171.72,171.66,29.0724]
[1717754787910,7.31,171.72,171.67,26.3851]
[1717754790114,2.1543,171.75,171.67,26.3851]
[1717754790499,7.31,171.71,171.67,26.3851]
[1717754790907,7.31,171.71,171.67,20.0]
[1717754791107,7.31,171.71,171.66,20.0]
[1717754792632,7.31,171.71,171.66,26.1452]
[1717754794023,2.1542,171.76,171.66,26.1452]
[1717754794326,7.31,171.72,171.66,26.1452]
[1717754794820,2.1542,171.76,171.66,26.1452]
[1717754795013,7.31,171.72,171.66,26.1452]
[1717754795606,7.31,171.71,171.66,26.1452]
[1717754797624,7.31,171.72,171.66,26.1452]
[1717754798124,2.1542,171.76,171.66,26.1452]
[1717754798426,2.1542,171.76,171.67,120.0]
[1717754798617,7.31,171.73,171.68,20.0]
[1717754798823,7.31,171.72,171.66,68.4352]
[1717754800832,7.31,171.72,171.66,27.31]
[1717754801421,7.31,171.72,171.66,62.29]
[1717754803638,7.31,171.72,171.66,27.31]
[1717754804133,7.31,171.72,171.66,20.0]
[1717754806728,7.31,171.72,171.66,54.98]
[1717754806927,7.31,171.72,171.66,20.0]
[1717754807569,7.31,171.71,171.66,20.0]
[1717754808052,6.05446792,171.8,171.63,126.2402]
[1717754808053,7.31,171.69,171.65,20.0]
[1717754808349,7.31,171.68,171.61,127.31]
[1717754808637,31.3947,171.72,171.61,125.83]
[1717754808822,31.3947,171.72,171.61,133.14]
[1717754809547,31.3947,171.72,171.61,168.12]
[1717754809853,29.24,171.72,171.61,168.12]
[1717754810351,29.24,171.72,171.62,25.83]
[1717754810853,7.31,171.69,171.63,7.31]
[1717754811046,7.31,171.69,171.64,20.0]
[1717754811226,7.31,171.69,171.64,25.83]
[1717754812444,7.31,171.69,171.64,20.0]
[1717754812950,7.31,171.69,171.63,20.0]
[1717754813156,7.31,171.7,171.64,5.83]
[1717754814354,7.31,171.7,171.63,182.29]
[1717754814556,2.1544,171.74,171.63,188.12]
[1717754814748,7.31,171.7,171.63,188.12]
[1717754814934,2.1545,171.73,171.63,188.12]
[1717754815138,7.31,171.7,171.63,182.29]
[1717754815661,2.1545,171.73,171.63,188.12]
[1717754815949,7.31,171.7,171.63,188.12]
[1717754818244,7.31,171.68,171.63,140.0]
[1717754818449,7.31,171.68,171.63,187.4367]
[1717754818837,7.31,171.68,171.63,152.4567]
[1717754819032,2.1546,171.72,171.63,152.4567]
[1717754819333,7.31,171.69,171.63,194.7467]
[1717754819653,7.31,171.69,171.63,188.9167]
[1717754820044,7.31,171.69,171.63,153.9367]
[1717754820242,7.31,171.69,171.63,152.4567]
[1717754820442,7.31,171.69,171.63,146.6267]
[1717754820647,7.31,171.69,171.63,181.6067]
[1717754821458,7.31,171.69,171.63,187.4367]
[1717754822038,7.31,171.73,171.68,120.0]
[1717754822241,7.31,171.73,171.67,34.98]
[1717754822454,7.31,171.73,171.68,20.0]
[1717754824637,7.31,171.72,171.67,54.98]
[1717754825161,7.31,171.72,171.67,26.4465]
[1717754825758,7.31,171.71,171.67,20.0]
[1717754826063,7.31,171.71,171.66,20.0]
[1717754832667,7.31,171.71,171.66,140.0]
[1717754835171,7.31,171.73,171.66,182.29]
[1717754835669,7.31,171.74,171.67,7.31]
[1717754835847,7.31,171.74,171.68,20.0]
[1717754836571,7.31,171.73,171.67,7.31]
[1717754836771,7.31,171.73,171.68,20.0]
[1717754839353,2.1541,171.76,171.68,146.3765]
[1717754839552,7.31,171.73,171.68,146.3765]
[1717754840355,7.31,171.73,171.68,181.3565]
[1717754841270,7.31,171.73,171.68,146.3765]
[1717754842365,7.31,171.74,171.68,146.3765]
[1717754846379,26.0661,171.8,171.69,34.98]
[1717754846554,7.31,171.75,171.69,42.29]
[1717754846868,7.31,171.75,171.7,26.1256]
[1717754847061,7.31,171.75,171.7,6.1256]
[1717754848277,2.154,171.78,171.7,161.1056]
[1717754848577,7.31,171.76,171.7,168.4156]
[1717754848760,7.31,171.76,171.71,20.0]
[1717754848957,33.5471,171.81,171.72,6.4535]
[1717754849166,7.31,171.77,171.73,20.0]
[1717754849680,7.31,171.77,171.72,6.4535]
[1717754849975,7.31,171.77,171.73,20.0]
[1717754850766,2.1537,171.8,171.73,20.0]
[1717754850967,7.31,171.77,171.73,20.0]
[1717754851364,7.31,171.78,171.73,20.0]
[1717754854277,7.31,171.78,171.73,26.5308]
[1717754854884,7.31,171.79,171.73,26.5308]
[1717754866805,7.31,171.79,171.73,61.5108]
[1717754867097,7.31,171.79,171.73,26.5308]
[1717754869780,7.31,171.79,171.73,33.8408]
[1717754870784,7.31,171.79,171.73,68.8208]
[1717754875142,7.31,171.79,171.73,61.5108]
[1717754875311,2.1535,171.81,171.73,61.5108]
[1717754875483,7.31,171.79,171.73,61.5108]
[1717754882004,7.31,171.77,171.73,26.5308]
[1717754882208,7.31,171.76,171.73,26.5308]
[1717754883111,2.1537,171.8,171.73,26.5308]
[1717754883408,7.31,171.77,171.73,26.5308]
[1717754883899,2.1537,171.8,171.73,26.5308]
[1717754884212,7.31,171.77,171.73,26.5308]
[1717754888013,4.3065,171.84,171.73,33.8408]
[1717754888216,7.31,171.79,171.73,26.5308]
[1717754888722,7.31,171.79,171.73,33.8408]
[1717754888923,7.31,171.79,171.73,26.5308]
[1717754889103,2.1535,171.81,171.73,26.5308]
[1717754889301,7.31,171.79,171.73,26.5308]
[1717754891411,7.31,171.78,171.73,20.0]
[1717754891612,7.31,171.77,171.74,6.0364]
[1717754891808,7.31,171.78,171.74,6.0364]
[1717754892314,8.613,171.84,171.73,20.0]
[1717754892315,7.31,171.79,171.73,20.0]
[1717754892520,7.31,171.79,171.73,26.1315]
[1717754893405,2.1535,171.81,171.73,26.1315]
[1717754893603,7.31,171.79,171.73,26.1315]
[1717754893803,2.1535,171.81,171.73,26.1315]
[1717754894024,7.31,171.79,171.73,26.1315]
[1717754895227,2.1535,171.81,171.73,26.1315]
[1717754895421,7.31,171.79,171.73,26.1315]
[1717754896133,7.31,171.78,171.74,6.4736]
[1717754899630,7.31,171.78,171.75,6.0813]
[1717754900219,2.1535,171.81,171.75,6.0813]
[1717754900407,7.31,171.78,171.75,6.0813]
[1717754903335,7.31,171.78,171.75,6.283]
[1717754904034,7.31,171.79,171.75,6.283]
[1717754907738,7.31,171.79,171.75,6.2453]
[1717754909320,7.31,171.79,171.75,16.6211]
[1717754909519,7.31,171.79,171.76,6.2431]
[1717754910216,7.31,171.8,171.76,6.2431]
[1717754914230,7.31,171.79,171.76,6.2431]
[1717754919342,2.1536,171.81,171.76,6.2431]
[1717754919553,2.1534,171.82,171.77,6.0954]
[1717754919863,2.1533,171.83,171.76,13.4054]
[1717754920020,7.31,171.82,171.76,13.4054]
[1717754920222,7.31,171.82,171.76,6.0954]
[1717754922533,2.1533,171.83,171.76,6.0954]
[1717754922722,7.31,171.82,171.76,6.0954]
[1717754922922,7.31,171.82,171.76,13.4054]
[1717754923641,2.1532,171.84,171.76,13.4054]
[1717754923844,7.31,171.82,171.76,13.4054]
[1717754925235,7.31,171.82,171.76,6.0954]
[1717754925565,7.31,171.82,171.76,13.4054]
[1717754925733,7.31,171.82,171.79,6.2813]
[1717754925938,7.31,171.82,171.8,6.2813]
[1717754926559,7.31,171.83,171.8,6.2813]
[1717754926738,2.1531,171.85,171.78,21.5394]
[1717754926941,7.31,171.84,171.81,6.2813]
[1717754928940,2.1531,171.85,171.81,6.2813]
[1717754929242,7.31,171.84,171.81,6.2813]
[1717754930540,7.31,171.83,171.81,6.2813]
[1717754930941,7.31,171.84,171.81,6.2813]
[1717754932153,2.1529,171.86,171.81,6.2813]
[1717754932458,7.31,171.84,171.81,6.2813]
[1717754933166,7.31,171.85,171.81,6.2813]
[1717754934365,2.1529,171.86,171.8,6.3777]
[1717754934570,2.1529,171.86,171.79,135.2581]
[1717754934571,7.31,171.85,171.79,120.0]
[1717754934870,2.1528,171.87,171.8,6.1425]
[1717754935071,7.31,171.85,171.8,15.0667]
[1717754935256,7.31,171.85,171.82,6.602]
[1717754935449,7.31,171.86,171.82,6.602]
[1717754936361,2.1528,171.87,171.82,6.602]
[1717754936667,7.31,171.86,171.82,6.602]
[1717754937677,2.1528,171.87,171.82,6.602]
[1717754937873,7.31,171.86,171.82,6.602]
[1717754938443,2.1528,171.87,171.82,6.602]
[1717754938662,7.31,171.86,171.82,6.602]
[1717754939265,2.1528,171.87,171.82,6.602]
[1717754939468,7.31,171.86,171.82,6.602]
[1717754940187,2.1528,171.87,171.82,6.602]
[1717754940367,7.31,171.86,171.82,6.602]
[1717754940878,2.1528,171.87,171.82,6.602]
[1717754941173,7.31,171.85,171.82,6.602]
[1717754942378,2.1527,171.88,171.8,15.0667]
[1717754942600,7.31,171.85,171.79,178.231]
[1717754942891,7.31,171.85,171.82,6.6544]
[1717754943685,2.1527,171.88,171.82,6.6544]
[1717754943874,7.31,171.85,171.82,6.6544]
[1717754944780,7.31,171.85,171.81,15.941]
[1717754944962,7.31,171.85,171.82,6.0188]
[1717754945362,7.31,171.84,171.8,20.0]
[1717754945574,7.31,171.83,171.8,6.0188]
[1717754948281,2.1524,171.9,171.82,142.9353]
[1717754948476,7.31,171.87,171.82,171.5515]
[1717754948874,7.31,171.87,171.83,6.4568]
[1717754949054,7.31,171.87,171.82,171.5515]
[1717754949257,2.1523,171.91,171.84,6.4568]
[1717754949676,7.31,171.87,171.84,6.4568]
[1717754951771,7.31,171.86,171.82,120.0]
[1717754951973,9.4624,171.9,171.8,126.2998]
[1717754952285,7.31,171.83,171.8,126.5409]
[1717754952674,7.31,171.82,171.8,126.5409]
[1717754956369,7.31,171.83,171.8,126.5409]
[1717754960290,7.31,171.84,171.8,6.5409]
[1717754961688,7.31,171.83,171.8,6.5409]
[1717754963670,7.31,171.84,171.8,6.5409]
[1717754964596,7.31,171.85,171.8,6.5409]
[1717754965393,7.31,171.84,171.8,6.5409]
[1717754965992,7.31,171.84,171.79,154.98]
[1717754966176,7.31,171.83,171.77,154.98]
[1717754966493,7.31,171.83,171.78,61.2196]
[1717754967287,7.31,171.83,171.78,26.2396]
[1717754968293,2.1527,171.87,171.78,26.2396]
[1717754968494,7.31,171.82,171.78,26.2396]
[1717754970081,7.31,171.83,171.79,120.0]
[1717754975603,2.1527,171.88,171.79,120.0]
[1717754975805,7.31,171.83,171.79,126.5683]
[1717754979107,7.31,171.84,171.79,126.5683]
[1717754979697,2.1527,171.88,171.79,126.5683]
[1717754979894,7.31,171.84,171.79,126.5683]
[1717754982209,2.1527,171.88,171.79,126.5683]
[1717754982409,7.31,171.84,171.79,126.5683]
[1717754983606,2.1527,171.88,171.79,126.5683]
[1717754983912,7.31,171.84,171.79,126.5683]
[1717754986502,7.31,171.84,171.79,120.0]
[1717754986718,7.31,171.84,171.8,6.6519]
[1717755006225,2.1527,171.88,171.79,126.5571]
[1717755006525,2.1527,171.88,171.79,161.5371]
[1717755006526,7.31,171.85,171.79,161.5371]
[1717755006904,2.1526,171.89,171.79,161.5371]
[1717755007220,7.31,171.86,171.82,6.3592]
[1717755007406,7.31,171.87,171.81,170.3546]
[1717755010833,2.1526,171.89,171.81,170.3546]
[1717755011004,7.31,171.87,171.81,170.3546]
[1717755011212,2.1526,171.89,171.81,170.3546]
[1717755011410,7.31,171.87,171.81,170.3546]
[1717755011923,7.31,171.87,171.81,177.6646]
[1717755013433,7.31,171.87,171.81,170.3546]
[1717755013812,2.1526,171.89,171.81,170.3546]
[1717755014021,7.31,171.87,171.81,177.6646]
[1717755015240,2.1526,171.89,171.81,177.6646]
[1717755015744,7.31,171.87,171.81,177.6646]
[1717755016819,2.1526,171.89,171.81,177.6646]
[1717755017149,7.31,171.87,171.81,177.6646]
[1717755019051,2.1525,171.89,171.81,177.6646]
[1717755019223,2.1524,171.9,171.81,177.6646]
[1717755019551,7.31,171.87,171.81,177.6646]
[1717755019742,2.1525,171.89,171.81,177.6646]
[1717755019920,7.31,171.87,171.81,177.6646]
[1717755020118,2.1525,171.89,171.81,177.6646]
[1717755020338,2.1524,171.9,171.81,177.6646]
[1717755020540,7.31,171.87,171.81,177.6646]
[1717755021239,2.1525,171.9,171.81,177.6646]
[1717755021539,7.31,171.87,171.81,177.6646]
[1717755023048,7.31,171.88,171.81,177.6646]
[1717755023235,7.31,171.88,171.83,120.0]
[1717755023548,7.31,171.88,171.84,6.2531]
[1717755023852,2.1523,171.91,171.84,6.2531]
[1717755024029,7.31,171.89,171.83,142.8417]
[1717755024841,2.1522,171.92,171.84,7.31]
[1717755025157,7.31,171.91,171.85,120.0]
[1717755026428,2.1522,171.92,171.85,120.0]
[1717755026624,7.31,171.91,171.85,120.0]
[1717755027246,7.31,171.9,171.85,120.0]
[1717755027556,2.1522,171.92,171.86,6.2301]
[1717755027749,7.31,171.9,171.87,6.327]
[1717755028458,2.152,171.93,171.88,7.33141417]
[1717755028663,7.31,171.92,171.89,6.254]
[1717755028837,2.1519,171.94,171.9,1.07766229]
[1717755029160,7.31,171.92,171.9,1.07766229]
[1717755029861,2.1519,171.94,171.9,1.07766229]
[1717755030157,7.31,171.92,171.9,1.07766229]
[1717755030652,7.31,171.93,171.9,1.07766229]
[1717755032339,2.1519,171.94,171.9,1.07766229]
[1717755032542,7.31,171.93,171.9,1.07766229]
[1717755033629,2.1519,171.94,171.9,1.07766229]
[1717755033827,7.31,171.93,171.89,6.4486]
[1717755034056,7.31,171.93,171.9,1.07758024]
[1717755034266,2.1518,171.95,171.9,1.07758024]
[1717755034447,7.31,171.93,171.9,7.69848024]
[1717755034643,2.1518,171.95,171.9,7.69848024]
[1717755034847,7.31,171.93,171.9,7.69848024]
[1717755037048,2.1519,171.94,171.9,7.69848024]
[1717755037255,16.83280583,171.99,171.91,6.549]
[1717755037468,7.31,171.94,171.9,15.6946]
[1717755037770,7.31,171.94,171.92,6.549]
[1717755037952,2.1516,171.97,171.92,6.549]
[1717755037953,7.31,171.95,171.92,6.549]
[1717755038949,2.1516,171.97,171.92,6.549]
[1717755039160,7.31,171.95,171.92,6.549]
[1717755042863,2.1515,171.97,171.9,6.1255]
[1717755043165,7.31,171.97,171.9,13.4355]
[1717755043875,9.4615,171.97,171.9,13.4355]
[1717755045951,7.31,171.97,171.9,13.4355]
[1717755047056,9.4615,171.97,171.9,13.4355]
[1717755047250,2.1514,171.98,171.91,162.29]
[1717755047445,7.31,171.97,171.91,162.29]
[1717755047646,7.31,171.98,171.91,162.29]
[1717755047867,2.1513,171.99,171.91,162.29]
[1717755048080,7.31,171.98,171.91,162.29]
[1717755048748,7.31,171.98,171.92,41.4844]
[1717755049576,7.31,171.98,171.93,135.8739]
[1717755049953,2.1513,171.99,171.94,6.5044]
[1717755050148,2.1513,171.99,171.93,142.3783]
[1717755050365,7.31,171.98,171.93,135.8739]
[1717755050547,7.31,171.98,171.95,6.5044]
[1717755051370,2.1513,171.99,171.95,6.5044]
[1717755051672,7.31,171.98,171.95,6.5044]
[1717755052781,2.1513,171.99,171.95,6.5044]
[1717755052948,7.31,171.98,171.95,6.5044]
[1717755055452,2.1513,171.99,171.95,6.5044]
[1717755055661,7.31,171.98,171.95,6.5044]
[1717755062292,7.31,171.97,171.95,6.5044]
[1717755065380,2.1513,171.99,171.95,6.5044]
[1717755065690,7.31,171.98,171.95,6.5044]
[1717755072088,9.4614,171.98,171.95,6.5044]
[1717755072277,7.31,171.97,171.95,6.5044]
[1717755076075,7.31,171.98,171.95,6.5044]
[1717755077078,7.31,171.97,171.95,6.5044]
[1717755081994,7.31,171.98,171.95,6.5044]
[1717755092291,9.4613,171.99,171.95,6.5044]
[1717755093209,7.31,171.99,171.95,6.5044]
[1717755094122,9.4612,171.99,171.95,6.5044]
[1717755094582,7.31,171.97,171.93,6.1657]
[1717755094783,7.31,171.94,171.89,6.1657]
[1717755095009,7.31,171.9,171.87,6.1657]
[1717755095381,2.1524,171.9,171.84,15.629]
[1717755095581,7.31,171.88,171.84,22.2277]
[1717755096396,7.31,171.88,171.84,6.5987]
[1717755097486,7.31,171.87,171.84,6.5987]
[1717755098790,7.31,171.86,171.82,6.5987]
[1717755099005,7.31,171.84,171.82,6.5987]
[1717755099916,7.31,171.86,171.82,6.5987]
[1717755100691,7.31,171.84,171.79,5.821]
[1717755101014,7.31,171.84,171.77,6.4862]
[1717755101015,7.31,171.81,171.77,6.4862]
[1717755101712,7.31,171.82,171.77,6.4862]
[1717755102009,7.31,171.81,171.75,16.3215]
[1717755102606,7.31,171.8,171.74,34.92]
[1717755102819,7.31,171.8,171.73,6.4862]
[1717755103008,7.31,171.79,171.73,6.4862]
[1717755105295,7.31,171.79,171.73,13.7962]
[1717755106097,2.1534,171.82,171.74,7.31]
[1717755106298,7.31,171.8,171.73,6.4862]
[1717755106905,7.31,171.8,171.74,7.31]
[1717755107394,8.23362643,171.85,171.76,154.92]
[1717755107594,2.1528,171.87,171.78,7.31]
[1717755107844,7.31,171.84,171.78,7.31]
[1717755108007,7.31,171.85,171.79,7.31]